[Event "Titled Tuesday Blitz June 27 Late 2023"]
[White "Oliveira, Tiago Batista"]
[Black "Karas, Marek"]
[WhiteFideId "2108291"]
[BlackFideId "14928558"]
[WhiteElo "2166"]
[BlackElo "2442"]
[Result "1-0"]
[Round "4"]
[TimeControl "180+2"]
[Date "2023.06.27"]
[WhiteClock "0:00:05"]
[BlackClock "0:00:48"]
[Board "150"]

1. d4 {[%clk 0:03:00]}  Nf6 {[%clk 0:02:59]} 2. c4 {[%clk 0:03:00]}  c5 {[%clk 0:03:00]} 3. d5 {[%clk 0:03:00]}  b5 {[%clk 0:03:00]} 4. cxb5 {[%clk 0:03:00]}  a6 {[%clk 0:03:01]} 5. bxa6 {[%clk 0:03:00]}  e6 {[%clk 0:03:01]} 6. Nc3 {[%clk 0:02:51]}  exd5 {[%clk 0:03:01]} 7. Nxd5 {[%clk 0:02:40]}  Nxd5 {[%clk 0:03:02]} 8. Qxd5 {[%clk 0:02:39]}  Nc6 {[%clk 0:03:03]} 9. e3 {[%clk 0:02:29]}  Bxa6 {[%clk 0:03:03]} 10. Bxa6 {[%clk 0:02:21]}  Qa5+ {[%clk 0:03:04]} 11. Qd2 {[%clk 0:02:14]}  Qxa6 {[%clk 0:03:04]} 12. Ne2 {[%clk 0:02:14]}  Be7 {[%clk 0:02:57]} 13. O-O {[%clk 0:02:13]}  d5 {[%clk 0:02:57]} 14. Nf4 {[%clk 0:02:09]}  d4 {[%clk 0:02:49]} 15. exd4 {[%clk 0:01:50]}  Nxd4 {[%clk 0:02:50]} 16. Re1 {[%clk 0:01:46]}  Kf8 {[%clk 0:02:38]} 17. Nd5 {[%clk 0:01:04]}  Bd6 {[%clk 0:02:30]} 18. b4 {[%clk 0:01:01]}  Nb3 {[%clk 0:02:22]} 19. axb3 {[%clk 0:00:42]}  Qxa1 {[%clk 0:02:23]} 20. Nb6 {[%clk 0:00:25]}  Rd8 {[%clk 0:02:18]} 21. Bb2 {[%clk 0:00:20]}  Qa6 {[%clk 0:02:08]} 22. bxc5 {[%clk 0:00:19]}  Be7 {[%clk 0:02:02]} 23. Nd7+ {[%clk 0:00:18]}  Kg8 {[%clk 0:01:54]} 24. Rxe7 {[%clk 0:00:16]}  Qc8 {[%clk 0:01:43]} 25. c6 {[%clk 0:00:12]}  h6 {[%clk 0:01:38]} 26. Qd4 {[%clk 0:00:12]}  Rh7 {[%clk 0:01:29]} 27. Qc3 {[%clk 0:00:08]}  h5 {[%clk 0:01:14]} 28. h3 {[%clk 0:00:09]}  h4 {[%clk 0:01:12]} 29. b4 {[%clk 0:00:09]}  f6 {[%clk 0:01:06]} 30. b5 {[%clk 0:00:09]}  Rh5 {[%clk 0:00:58]} 31. b6 {[%clk 0:00:08]}  Rb5 {[%clk 0:00:58]} 32. b7 {[%clk 0:00:07]}  Qc7 {[%clk 0:00:52]} 33. Qc4+ {[%clk 0:00:06]}  Kh7 {[%clk 0:00:52]} 34. Qxb5 {[%clk 0:00:06]}  Qd6 {[%clk 0:00:51]} 35. Qh5+ {[%clk 0:00:06]}  Kg8 {[%clk 0:00:51]} 36. Re8+ {[%clk 0:00:06]}  Rxe8 {[%clk 0:00:51]} 37. Qxe8+ {[%clk 0:00:07]}  Kh7 {[%clk 0:00:52]} 38. Nf8+ {[%clk 0:00:06]}  Kh8 {[%clk 0:00:50]} 39. Ng6+ {[%clk 0:00:04]}  Kh7 {[%clk 0:00:50]} 40. Nf8+ {[%clk 0:00:04]}  Kh6 {[%clk 0:00:49]} 41. b8=Q {[%clk 0:00:04]}  Qd1+ {[%clk 0:00:48]} 42. Kh2 {[%clk 0:00:04]}  Qd3 {[%clk 0:00:47]} 43. Qg6+ {[%clk 0:00:03]}  Qxg6 {[%clk 0:00:46]} 44. Nxg6 {[%clk 0:00:03]}  Kh7 {[%clk 0:00:47]} 45. c7 {[%clk 0:00:04]}  Kh6 {[%clk 0:00:47]} 46. Qg8 {[%clk 0:00:04]}  f5 {[%clk 0:00:48]} 47. c8=Q {[%clk 0:00:03]}  Kg5 {[%clk 0:00:48]} 48. Qxg7 {[%clk 0:00:04]}  f4 {[%clk 0:00:49]} 49. Nf8+ {[%clk 0:00:04]}  Kh5 {[%clk 0:00:48]} 50. Qc5# {[%clk 0:00:05]} 1-0


[Site "https://www.chess.com"]

[Event "Titled Tuesday Blitz June 27 Late 2023"]
[White "McCormick, Cale"]
[Black "zano2023"]
[WhiteFideId "30911141"]
[WhiteElo "2440"]
[BlackElo "2160"]
[Result "0-1"]
[Round "4"]
[TimeControl "180+2"]
[Date "2023.06.27"]
[WhiteClock "0:00:24"]
[BlackClock "0:00:10"]
[Board "151"]

1. d4 {[%clk 0:03:00]}  e5 {[%clk 0:02:56]} 2. c4 {[%clk 0:03:01]}  d6 {[%clk 0:02:56]} 3. Nf3 {[%clk 0:02:59]}  Bg4 {[%clk 0:02:55]} 4. dxe5 {[%clk 0:02:47]}  Nc6 {[%clk 0:02:54]} 5. Bg5 {[%clk 0:02:42]}  Qd7 {[%clk 0:02:54]} 6. Nc3 {[%clk 0:02:36]}  h6 {[%clk 0:02:47]} 7. Bh4 {[%clk 0:02:32]}  dxe5 {[%clk 0:02:39]} 8. Qxd7+ {[%clk 0:02:22]}  Bxd7 {[%clk 0:02:40]} 9. Nb5 {[%clk 0:02:16]}  Rc8 {[%clk 0:02:36]} 10. O-O-O {[%clk 0:02:12]}  a6 {[%clk 0:02:33]} 11. Nc3 {[%clk 0:02:11]}  Nge7 {[%clk 0:02:24]} 12. e3 {[%clk 0:01:53]}  Be6 {[%clk 0:02:14]} 13. Nd5 {[%clk 0:01:48]}  f6 {[%clk 0:02:05]} 14. Bd3 {[%clk 0:01:37]}  Kf7 {[%clk 0:01:53]} 15. Bb1 {[%clk 0:01:29]}  g5 {[%clk 0:01:53]} 16. Bg3 {[%clk 0:01:28]}  Bg7 {[%clk 0:01:37]} 17. h4 {[%clk 0:01:24]}  g4 {[%clk 0:01:37]} 18. Ng1 {[%clk 0:01:20]}  h5 {[%clk 0:01:36]} 19. Ne2 {[%clk 0:01:20]}  Rhd8 {[%clk 0:01:33]} 20. Nec3 {[%clk 0:01:19]}  Nf5 {[%clk 0:01:31]} 21. Bh2 {[%clk 0:01:16]}  Nd6 {[%clk 0:01:23]} 22. b3 {[%clk 0:01:09]}  Ne7 {[%clk 0:01:17]} 23. Nxe7 {[%clk 0:01:03]}  Kxe7 {[%clk 0:01:15]} 24. Bg6 {[%clk 0:01:04]}  Bf7 {[%clk 0:01:16]} 25. Nd5+ {[%clk 0:01:01]}  Kf8 {[%clk 0:01:16]} 26. Bb1 {[%clk 0:00:46]}  b5 {[%clk 0:00:56]} 27. c5 {[%clk 0:00:43]}  Nb7 {[%clk 0:00:55]} 28. c6 {[%clk 0:00:32]}  Nc5 {[%clk 0:00:49]} 29. Nc3 {[%clk 0:00:27]}  Be8 {[%clk 0:00:39]} 30. b4 {[%clk 0:00:20]}  Na4 {[%clk 0:00:31]} 31. Nxa4 {[%clk 0:00:19]}  bxa4 {[%clk 0:00:32]} 32. Be4 {[%clk 0:00:19]}  Ke7 {[%clk 0:00:26]} 33. a3 {[%clk 0:00:18]}  Rxd1+ {[%clk 0:00:23]} 34. Rxd1 {[%clk 0:00:19]}  Rd8 {[%clk 0:00:24]} 35. Rxd8 {[%clk 0:00:18]}  Kxd8 {[%clk 0:00:24]} 36. f4 {[%clk 0:00:18]}  Ke7 {[%clk 0:00:23]} 37. fxe5 {[%clk 0:00:18]}  fxe5 {[%clk 0:00:23]} 38. Bd3 {[%clk 0:00:15]}  Bxc6 {[%clk 0:00:21]} 39. Bxa6 {[%clk 0:00:16]}  Bxg2 {[%clk 0:00:21]} 40. Bb5 {[%clk 0:00:16]}  Bh6 {[%clk 0:00:18]} 41. Kd2 {[%clk 0:00:15]}  Bd5 {[%clk 0:00:15]} 42. Bxa4 {[%clk 0:00:16]}  Kd6 {[%clk 0:00:15]} 43. Bd1 {[%clk 0:00:16]}  c5 {[%clk 0:00:14]} 44. Kd3 {[%clk 0:00:17]}  cxb4 {[%clk 0:00:14]} 45. axb4 {[%clk 0:00:18]}  Kc6 {[%clk 0:00:14]} 46. e4 {[%clk 0:00:18]}  Be6 {[%clk 0:00:11]} 47. Ba4+ {[%clk 0:00:17]}  Kb6 {[%clk 0:00:10]} 48. Be8 {[%clk 0:00:18]}  Bf4 {[%clk 0:00:10]} 49. Bxh5 {[%clk 0:00:18]}  Bxh2 {[%clk 0:00:09]} 50. Bg6 {[%clk 0:00:18]}  Bf4 {[%clk 0:00:08]} 51. h5 {[%clk 0:00:18]}  g3 {[%clk 0:00:09]} 52. Ke2 {[%clk 0:00:19]}  Bg4+ {[%clk 0:00:08]} 53. Kf1 {[%clk 0:00:20]}  Bf3 {[%clk 0:00:07]} 54. Bf5 {[%clk 0:00:19]}  Kb5 {[%clk 0:00:06]} 55. h6 {[%clk 0:00:19]}  Bxh6 {[%clk 0:00:06]} 56. Bd7+ {[%clk 0:00:20]}  Kxb4 {[%clk 0:00:05]} 57. Bf5 {[%clk 0:00:21]}  Kc4 {[%clk 0:00:05]} 58. Kg1 {[%clk 0:00:22]}  Kd4 {[%clk 0:00:05]} 59. Kf1 {[%clk 0:00:21]}  Bf4 {[%clk 0:00:06]} 60. Bh3 {[%clk 0:00:21]}  Ke3 {[%clk 0:00:07]} 61. Bg2 {[%clk 0:00:21]}  Be2+ {[%clk 0:00:07]} 62. Ke1 {[%clk 0:00:21]}  Bf3 {[%clk 0:00:07]} 63. Bf1 {[%clk 0:00:21]}  Bxe4 {[%clk 0:00:07]} 64. Be2 {[%clk 0:00:21]}  Bf3 {[%clk 0:00:08]} 65. Bf1 {[%clk 0:00:21]}  g2 {[%clk 0:00:08]} 66. Bxg2 {[%clk 0:00:20]}  Bxg2 {[%clk 0:00:08]} 67. Kd1 {[%clk 0:00:21]}  Bf3+ {[%clk 0:00:08]} 68. Ke1 {[%clk 0:00:22]}  Bg3+ {[%clk 0:00:09]} 69. Kf1 {[%clk 0:00:22]}  e4 {[%clk 0:00:09]} 70. Kg1 {[%clk 0:00:21]}  Kf4 {[%clk 0:00:10]} 71. Kf1 {[%clk 0:00:22]}  e3 {[%clk 0:00:10]} 72. Kg1 {[%clk 0:00:23]}  Ke4 {[%clk 0:00:10]} 73. Kf1 {[%clk 0:00:23]}  e2+ {[%clk 0:00:10]} 74. Kg1 {[%clk 0:00:24]}  e1=Q# {[%clk 0:00:10]} 0-1


[Site "https://www.chess.com"]

[Event "Titled Tuesday Blitz June 27 Late 2023"]
[White "Dushyant Sharma"]
[Black "Arnold, Ken"]
[WhiteFideId "25065130"]
[BlackFideId "2056836"]
[WhiteElo "2513"]
[BlackElo "2390"]
[Result "0-1"]
[Round "4"]
[TimeControl "180+2"]
[Date "2023.06.27"]
[WhiteClock "0:00:08"]
[BlackClock "0:00:19"]
[Board "157"]

1. e4 {[%clk 0:03:00]}  c6 {[%clk 0:03:00]} 2. d4 {[%clk 0:03:00]}  d5 {[%clk 0:03:01]} 3. exd5 {[%clk 0:03:01]}  cxd5 {[%clk 0:03:01]} 4. c3 {[%clk 0:03:02]}  Nf6 {[%clk 0:03:01]} 5. Bd3 {[%clk 0:03:03]}  Nc6 {[%clk 0:03:02]} 6. Nf3 {[%clk 0:03:04]}  Bg4 {[%clk 0:03:02]} 7. O-O {[%clk 0:03:05]}  e6 {[%clk 0:03:02]} 8. Be3 {[%clk 0:03:01]}  Bd6 {[%clk 0:03:02]} 9. Nbd2 {[%clk 0:03:01]}  O-O {[%clk 0:03:01]} 10. Qc2 {[%clk 0:03:02]}  Rc8 {[%clk 0:02:59]} 11. a3 {[%clk 0:03:02]}  a6 {[%clk 0:02:59]} 12. Rae1 {[%clk 0:03:03]}  Bh5 {[%clk 0:02:57]} 13. Bg5 {[%clk 0:03:03]}  Bg6 {[%clk 0:02:57]} 14. Qb1 {[%clk 0:03:04]}  Bxd3 {[%clk 0:02:57]} 15. Qxd3 {[%clk 0:03:05]}  h6 {[%clk 0:02:57]} 16. Bh4 {[%clk 0:03:05]}  Be7 {[%clk 0:02:55]} 17. Ne5 {[%clk 0:03:05]}  Nxe5 {[%clk 0:02:55]} 18. dxe5 {[%clk 0:03:05]}  Nd7 {[%clk 0:02:54]} 19. Bxe7 {[%clk 0:03:06]}  Qxe7 {[%clk 0:02:54]} 20. f4 {[%clk 0:03:07]}  Nc5 {[%clk 0:02:53]} 21. Qh3 {[%clk 0:03:07]}  f5 {[%clk 0:02:50]} 22. exf6 {[%clk 0:03:07]}  Rxf6 {[%clk 0:02:49]} 23. Re3 {[%clk 0:03:05]}  Rc6 {[%clk 0:02:43]} 24. b4 {[%clk 0:02:56]}  Na4 {[%clk 0:02:41]} 25. Nb3 {[%clk 0:02:56]}  Rc4 {[%clk 0:02:27]} 26. Nd4 {[%clk 0:02:54]}  Nxc3 {[%clk 0:02:22]} 27. Nxe6 {[%clk 0:02:52]}  Ne4 {[%clk 0:02:16]} 28. f5 {[%clk 0:02:52]}  a5 {[%clk 0:02:12]} 29. bxa5 {[%clk 0:02:48]}  Qd6 {[%clk 0:01:51]} 30. Qg4 {[%clk 0:02:42]}  Ng5 {[%clk 0:01:48]} 31. Qh5 {[%clk 0:02:39]}  Nxe6 {[%clk 0:01:40]} 32. fxe6 {[%clk 0:02:39]}  Rxf1+ {[%clk 0:01:33]} 33. Kxf1 {[%clk 0:02:40]}  Qc5 {[%clk 0:01:28]} 34. Qf7+ {[%clk 0:02:37]}  Kh7 {[%clk 0:01:27]} 35. Qf5+ {[%clk 0:02:37]}  Kg8 {[%clk 0:01:26]} 36. Qf7+ {[%clk 0:02:18]}  Kh7 {[%clk 0:01:26]} 37. Re1 {[%clk 0:02:18]}  Rc1 {[%clk 0:01:09]} 38. e7 {[%clk 0:02:03]}  Qc4+ {[%clk 0:01:00]} 39. Kf2 {[%clk 0:02:03]}  Qh4+ {[%clk 0:00:51]} 40. g3 {[%clk 0:01:49]}  Qxh2+ {[%clk 0:00:50]} 41. Kf3 {[%clk 0:01:49]}  Rxe1 {[%clk 0:00:44]} 42. Qf5+ {[%clk 0:01:49]}  Kg8 {[%clk 0:00:41]} 43. Qxd5+ {[%clk 0:01:31]}  Kh7 {[%clk 0:00:38]} 44. Qf5+ {[%clk 0:01:22]}  Kg8 {[%clk 0:00:37]} 45. Qf8+ {[%clk 0:00:50]}  Kh7 {[%clk 0:00:36]} 46. e8=Q {[%clk 0:00:51]}  Qh1+ {[%clk 0:00:30]} 47. Kg4 {[%clk 0:00:48]}  Re4+ {[%clk 0:00:25]} 48. Qxe4+ {[%clk 0:00:43]}  Qxe4+ {[%clk 0:00:24]} 49. Kh3 {[%clk 0:00:16]}  Qe6+ {[%clk 0:00:20]} 50. Kh2 {[%clk 0:00:12]}  Qa2+ {[%clk 0:00:18]} 51. Kh3 {[%clk 0:00:13]}  Qe6+ {[%clk 0:00:18]} 52. Kg2 {[%clk 0:00:12]}  Qc6+ {[%clk 0:00:17]} 53. Kh2 {[%clk 0:00:05]}  Qc2+ {[%clk 0:00:17]} 54. Kh3 {[%clk 0:00:05]}  Qc7 {[%clk 0:00:16]} 55. Qf5+ {[%clk 0:00:05]}  g6 {[%clk 0:00:16]} 56. Qe4 {[%clk 0:00:04]}  Qf7 {[%clk 0:00:16]} 57. a4 {[%clk 0:00:03]}  Qf5+ {[%clk 0:00:16]} 58. Qxf5 {[%clk 0:00:04]}  gxf5 {[%clk 0:00:17]} 59. Kg2 {[%clk 0:00:04]}  Kg6 {[%clk 0:00:17]} 60. Kf3 {[%clk 0:00:05]}  Kg5 {[%clk 0:00:18]} 61. Ke3 {[%clk 0:00:05]}  h5 {[%clk 0:00:18]} 62. Kd4 {[%clk 0:00:06]}  f4 {[%clk 0:00:18]} 63. gxf4+ {[%clk 0:00:06]}  Kxf4 {[%clk 0:00:19]} 64. Kc5 {[%clk 0:00:06]}  h4 {[%clk 0:00:18]} 65. Kb6 {[%clk 0:00:07]}  h3 {[%clk 0:00:19]} 66. a6 {[%clk 0:00:08]}  bxa6 {[%clk 0:00:19]} 67. Kxa6 {[%clk 0:00:09]}  h2 {[%clk 0:00:19]} 68. a5 {[%clk 0:00:10]}  h1=Q {[%clk 0:00:20]} 69. Ka7 {[%clk 0:00:10]}  Qh7+ {[%clk 0:00:20]} 70. Kb8 {[%clk 0:00:10]}  Qg8+ {[%clk 0:00:20]} 71. Ka7 {[%clk 0:00:11]}  Qf7+ {[%clk 0:00:20]} 72. Kb8 {[%clk 0:00:11]}  Qe8+ {[%clk 0:00:20]} 73. Ka7 {[%clk 0:00:12]}  Qd7+ {[%clk 0:00:19]} 74. Ka8 {[%clk 0:00:08]}  Qb5 {[%clk 0:00:19]} 0-1


[Site "https://www.chess.com"]

[Event "Titled Tuesday Blitz June 27 Late 2023"]
[White "BrandonJiang123456"]
[Black "Jiang, Andrew"]
[BlackFideId "30953510"]
[WhiteElo "2202"]
[BlackElo "2442"]
[Result "1-0"]
[Round "4"]
[TimeControl "180+2"]
[Date "2023.06.27"]
[WhiteClock "0:00:37"]
[BlackClock "0:01:24"]
[Board "160"]

1. e4 {[%clk 0:03:00]}  e5 {[%clk 0:02:58]} 2. Nf3 {[%clk 0:03:00]}  Nc6 {[%clk 0:02:57]} 3. Bc4 {[%clk 0:02:59]}  Bc5 {[%clk 0:02:54]} 4. c3 {[%clk 0:02:58]}  Nf6 {[%clk 0:02:54]} 5. d3 {[%clk 0:02:58]}  d6 {[%clk 0:02:54]} 6. Bb3 {[%clk 0:02:58]}  a6 {[%clk 0:02:54]} 7. Nbd2 {[%clk 0:02:57]}  Ba7 {[%clk 0:02:54]} 8. Nf1 {[%clk 0:02:57]}  O-O {[%clk 0:02:55]} 9. h3 {[%clk 0:02:55]}  Be6 {[%clk 0:02:54]} 10. Ng3 {[%clk 0:02:53]}  d5 {[%clk 0:02:54]} 11. Qe2 {[%clk 0:02:53]}  h6 {[%clk 0:02:52]} 12. O-O {[%clk 0:02:50]}  Qd6 {[%clk 0:02:51]} 13. Nh2 {[%clk 0:02:42]}  dxe4 {[%clk 0:02:48]} 14. dxe4 {[%clk 0:02:41]}  Bxb3 {[%clk 0:02:49]} 15. axb3 {[%clk 0:02:40]}  Qe6 {[%clk 0:02:49]} 16. b4 {[%clk 0:02:38]}  Rfd8 {[%clk 0:02:49]} 17. Ng4 {[%clk 0:02:36]}  Nxg4 {[%clk 0:02:49]} 18. hxg4 {[%clk 0:02:37]}  Rd7 {[%clk 0:02:50]} 19. Nf5 {[%clk 0:02:37]}  Rad8 {[%clk 0:02:47]} 20. g5 {[%clk 0:02:30]}  hxg5 {[%clk 0:02:43]} 21. Bxg5 {[%clk 0:02:30]}  f6 {[%clk 0:02:44]} 22. Bh4 {[%clk 0:02:20]}  g5 {[%clk 0:02:41]} 23. Qg4 {[%clk 0:02:16]}  Re8 {[%clk 0:02:22]} 24. Rad1 {[%clk 0:02:07]}  Rh7 {[%clk 0:02:19]} 25. Rd3 {[%clk 0:01:30]}  Kf7 {[%clk 0:02:09]} 26. Rfd1 {[%clk 0:01:19]}  gxh4 {[%clk 0:02:04]} 27. Rd7+ {[%clk 0:01:18]}  Ne7 {[%clk 0:02:04]} 28. Rxc7 {[%clk 0:01:04]}  Bxf2+ {[%clk 0:02:01]} 29. Kxf2 {[%clk 0:00:54]}  Qb6+ {[%clk 0:01:53]} 30. Rc5 {[%clk 0:00:53]}  Rg8 {[%clk 0:01:47]} 31. Nd6+ {[%clk 0:00:48]}  Kf8 {[%clk 0:01:45]} 32. Qd7 {[%clk 0:00:42]}  Nc6 {[%clk 0:01:24]} 33. Qxh7 {[%clk 0:00:37]} 1-0


[Site "https://www.chess.com"]

[Event "Titled Tuesday Blitz June 27 Late 2023"]
[White "Gardezi, Arsal"]
[Black "Kisic, Bozidar"]
[WhiteFideId "30949521"]
[BlackFideId "16500350"]
[WhiteElo "2180"]
[BlackElo "2441"]
[Result "0-1"]
[Round "4"]
[TimeControl "180+2"]
[Date "2023.06.27"]
[WhiteClock "0:00:14"]
[BlackClock "0:00:10"]
[Board "161"]

1. e4 {[%clk 0:03:00]}  g6 {[%clk 0:02:59]} 2. d4 {[%clk 0:03:00]}  Bg7 {[%clk 0:02:59]} 3. Nc3 {[%clk 0:03:00]}  d6 {[%clk 0:03:00]} 4. Nf3 {[%clk 0:02:47]}  a6 {[%clk 0:02:59]} 5. Be3 {[%clk 0:02:47]}  Nd7 {[%clk 0:02:58]} 6. Qd2 {[%clk 0:02:46]}  b5 {[%clk 0:02:59]} 7. a3 {[%clk 0:02:43]}  Bb7 {[%clk 0:02:59]} 8. Bd3 {[%clk 0:02:35]}  Rc8 {[%clk 0:02:59]} 9. d5 {[%clk 0:02:34]}  c5 {[%clk 0:02:58]} 10. dxc6 {[%clk 0:02:34]}  Bxc6 {[%clk 0:02:58]} 11. O-O {[%clk 0:02:30]}  Nc5 {[%clk 0:02:58]} 12. Nd4 {[%clk 0:02:15]}  Bb7 {[%clk 0:02:57]} 13. b4 {[%clk 0:01:59]}  Nd7 {[%clk 0:02:54]} 14. Rab1 {[%clk 0:01:59]}  Ne5 {[%clk 0:02:51]} 15. a4 {[%clk 0:01:55]}  Nc4 {[%clk 0:02:45]} 16. Bxc4 {[%clk 0:01:55]}  bxc4 {[%clk 0:02:45]} 17. b5 {[%clk 0:01:55]}  Qa5 {[%clk 0:02:30]} 18. Rfd1 {[%clk 0:01:33]}  Nf6 {[%clk 0:02:27]} 19. f3 {[%clk 0:01:23]}  Nd7 {[%clk 0:02:27]} 20. bxa6 {[%clk 0:01:14]}  Bxa6 {[%clk 0:02:24]} 21. Nd5 {[%clk 0:01:10]}  Qxd2 {[%clk 0:02:18]} 22. Rxd2 {[%clk 0:01:09]}  e6 {[%clk 0:01:51]} 23. Nb4 {[%clk 0:01:01]}  c3 {[%clk 0:01:40]} 24. Rdd1 {[%clk 0:01:00]}  Bc4 {[%clk 0:01:22]} 25. Nb5 {[%clk 0:00:54]}  Bxb5 {[%clk 0:01:22]} 26. axb5 {[%clk 0:00:54]}  Ne5 {[%clk 0:01:03]} 27. Bd4 {[%clk 0:00:40]}  Rc4 {[%clk 0:00:56]} 28. Nc6 {[%clk 0:00:39]}  O-O {[%clk 0:00:48]} 29. Bxe5 {[%clk 0:00:32]}  Bxe5 {[%clk 0:00:47]} 30. Nxe5 {[%clk 0:00:32]}  dxe5 {[%clk 0:00:48]} 31. b6 {[%clk 0:00:31]}  Rb8 {[%clk 0:00:48]} 32. Rd7 {[%clk 0:00:26]}  Kf8 {[%clk 0:00:38]} 33. Ra7 {[%clk 0:00:20]}  Rd4 {[%clk 0:00:26]} 34. b7 {[%clk 0:00:20]}  Rdd8 {[%clk 0:00:26]} 35. Ra3 {[%clk 0:00:19]}  Rd7 {[%clk 0:00:24]} 36. Ra8 {[%clk 0:00:18]}  Rdd8 {[%clk 0:00:24]} 37. Ra3 {[%clk 0:00:17]}  Ke7 {[%clk 0:00:17]} 38. Rxc3 {[%clk 0:00:17]}  Rd7 {[%clk 0:00:18]} 39. Rcb3 {[%clk 0:00:15]}  Rc7 {[%clk 0:00:18]} 40. R1b2 {[%clk 0:00:12]}  Kd7 {[%clk 0:00:17]} 41. Rb6 {[%clk 0:00:12]}  Rc4 {[%clk 0:00:15]} 42. Ra6 {[%clk 0:00:12]}  Kc7 {[%clk 0:00:15]} 43. Rab6 {[%clk 0:00:12]}  Rd4 {[%clk 0:00:14]} 44. R6b3 {[%clk 0:00:12]}  Rd1+ {[%clk 0:00:14]} 45. Kf2 {[%clk 0:00:12]}  Rd2+ {[%clk 0:00:15]} 46. Kg3 {[%clk 0:00:13]}  f5 {[%clk 0:00:15]} 47. Rc3+ {[%clk 0:00:13]}  Kd7 {[%clk 0:00:15]} 48. Rd3+ {[%clk 0:00:14]}  Rxd3 {[%clk 0:00:14]} 49. cxd3 {[%clk 0:00:14]}  g5 {[%clk 0:00:14]} 50. h4 {[%clk 0:00:14]}  h6 {[%clk 0:00:14]} 51. hxg5 {[%clk 0:00:14]}  hxg5 {[%clk 0:00:15]} 52. Rb4 {[%clk 0:00:13]}  Kd6 {[%clk 0:00:14]} 53. d4 {[%clk 0:00:13]}  exd4 {[%clk 0:00:14]} 54. Rxd4+ {[%clk 0:00:14]}  Ke7 {[%clk 0:00:13]} 55. Rb4 {[%clk 0:00:14]}  Kd6 {[%clk 0:00:13]} 56. Rb6+ {[%clk 0:00:14]}  Ke5 {[%clk 0:00:13]} 57. Rb5+ {[%clk 0:00:14]}  Kf6 {[%clk 0:00:12]} 58. f4 {[%clk 0:00:14]}  gxf4+ {[%clk 0:00:10]} 59. Kxf4 {[%clk 0:00:14]}  e5+ {[%clk 0:00:10]} 60. Rxe5 {[%clk 0:00:14]}  Rxb7 {[%clk 0:00:10]} 61. Rxf5+ {[%clk 0:00:15]}  Kg6 {[%clk 0:00:10]} 62. g4 {[%clk 0:00:16]}  Rb1 {[%clk 0:00:10]} 63. Re5 {[%clk 0:00:15]}  Rf1+ {[%clk 0:00:11]} 64. Kg3 {[%clk 0:00:16]}  Rg1+ {[%clk 0:00:11]} 65. Kf2 {[%clk 0:00:15]}  Rxg4 {[%clk 0:00:11]} 66. Kf3 {[%clk 0:00:15]}  Rg1 {[%clk 0:00:11]} 67. Ke3 {[%clk 0:00:15]}  Kf6 {[%clk 0:00:11]} 68. Kd4 {[%clk 0:00:14]}  Rd1+ {[%clk 0:00:10]} 0-1


[Site "https://www.chess.com"]

[Event "Titled Tuesday Blitz June 27 Late 2023"]
[White "infinitypoint"]
[Black "Kopacz, Grzegorz"]
[BlackFideId "1109880"]
[WhiteElo "2593"]
[BlackElo "2197"]
[Result "1-0"]
[Round "4"]
[TimeControl "180+2"]
[Date "2023.06.27"]
[WhiteClock "0:00:58"]
[BlackClock "0:00:16"]
[Board "163"]

1. e4 {[%clk 0:03:00]}  c5 {[%clk 0:02:59]} 2. Nf3 {[%clk 0:03:00]}  Nc6 {[%clk 0:02:59]} 3. c3 {[%clk 0:03:00]}  d5 {[%clk 0:02:58]} 4. exd5 {[%clk 0:03:01]}  Qxd5 {[%clk 0:02:57]} 5. d4 {[%clk 0:03:02]}  Bg4 {[%clk 0:02:57]} 6. Be2 {[%clk 0:03:02]}  cxd4 {[%clk 0:02:57]} 7. cxd4 {[%clk 0:03:02]}  e6 {[%clk 0:02:57]} 8. Nc3 {[%clk 0:03:02]}  Qa5 {[%clk 0:02:57]} 9. O-O {[%clk 0:03:02]}  Nf6 {[%clk 0:02:57]} 10. h3 {[%clk 0:03:01]}  Bh5 {[%clk 0:02:56]} 11. Be3 {[%clk 0:03:01]}  Bd6 {[%clk 0:02:55]} 12. Qb3 {[%clk 0:03:01]}  Qc7 {[%clk 0:02:54]} 13. Nb5 {[%clk 0:03:00]}  Qb8 {[%clk 0:02:53]} 14. Nxd6+ {[%clk 0:02:59]}  Qxd6 {[%clk 0:02:54]} 15. Rac1 {[%clk 0:02:50]}  O-O {[%clk 0:02:51]} 16. Qxb7 {[%clk 0:02:44]}  Nb4 {[%clk 0:02:43]} 17. a3 {[%clk 0:02:35]}  Nbd5 {[%clk 0:02:40]} 18. Rc6 {[%clk 0:02:33]}  Rab8 {[%clk 0:02:24]} 19. Qa6 {[%clk 0:02:27]}  Qd8 {[%clk 0:02:19]} 20. b4 {[%clk 0:02:26]}  Rb6 {[%clk 0:02:07]} 21. Rxb6 {[%clk 0:02:26]}  axb6 {[%clk 0:02:08]} 22. Rc1 {[%clk 0:02:20]}  Qa8 {[%clk 0:02:02]} 23. Qd3 {[%clk 0:02:19]}  Bg6 {[%clk 0:02:00]} 24. Qb3 {[%clk 0:02:19]}  h6 {[%clk 0:01:57]} 25. Ne5 {[%clk 0:02:18]}  Bf5 {[%clk 0:01:51]} 26. Bf3 {[%clk 0:02:09]}  Qa6 {[%clk 0:01:45]} 27. b5 {[%clk 0:02:04]}  Qa5 {[%clk 0:01:37]} 28. Nc6 {[%clk 0:02:03]}  Qa8 {[%clk 0:01:33]} 29. Ne7+ {[%clk 0:02:03]}  Kh8 {[%clk 0:01:24]} 30. Nxf5 {[%clk 0:02:03]}  exf5 {[%clk 0:01:22]} 31. Rc6 {[%clk 0:02:03]}  Qd8 {[%clk 0:01:10]} 32. Qc4 {[%clk 0:01:51]}  Nxe3 {[%clk 0:01:08]} 33. fxe3 {[%clk 0:01:50]}  Ne4 {[%clk 0:01:03]} 34. Bxe4 {[%clk 0:01:43]}  fxe4 {[%clk 0:01:04]} 35. a4 {[%clk 0:01:42]}  Qg5 {[%clk 0:01:01]} 36. Qc3 {[%clk 0:01:38]}  f5 {[%clk 0:00:59]} 37. Rc8 {[%clk 0:01:29]}  Rxc8 {[%clk 0:00:56]} 38. Qxc8+ {[%clk 0:01:30]}  Kh7 {[%clk 0:00:57]} 39. Qc1 {[%clk 0:01:30]}  Qd8 {[%clk 0:00:50]} 40. Qf1 {[%clk 0:01:27]}  Qd5 {[%clk 0:00:47]} 41. Qf4 {[%clk 0:01:18]}  Kg6 {[%clk 0:00:38]} 42. Kh2 {[%clk 0:01:17]}  Kf6 {[%clk 0:00:32]} 43. Qc7 {[%clk 0:01:15]}  Qe6 {[%clk 0:00:27]} 44. Qd8+ {[%clk 0:01:06]}  Kf7 {[%clk 0:00:25]} 45. a5 {[%clk 0:01:02]}  bxa5 {[%clk 0:00:22]} 46. Qxa5 {[%clk 0:01:03]}  f4 {[%clk 0:00:21]} 47. Qc7+ {[%clk 0:01:03]}  Kg8 {[%clk 0:00:20]} 48. Qxf4 {[%clk 0:01:02]}  g5 {[%clk 0:00:20]} 49. Qe5 {[%clk 0:01:02]}  Qa2 {[%clk 0:00:19]} 50. b6 {[%clk 0:00:57]}  Qb1 {[%clk 0:00:18]} 51. Qb8+ {[%clk 0:00:57]}  Kh7 {[%clk 0:00:18]} 52. Qc7+ {[%clk 0:00:57]}  Kg8 {[%clk 0:00:16]} 53. b7 {[%clk 0:00:58]} 1-0


[Site "https://www.chess.com"]